[Event "*** Titled Tuesday Blitz"]
[Site "Chess.com"]
[Date "2020.05.26"]
[Round "3"]
[White "Pultis"]
[Black "thedjoker98"]
[Result "1/2-1/2"]
[WhiteElo "2716"]
[BlackElo "2487"]
[TimeControl "180+1"]
[EndTime "10:26:53 PDT"]
[Termination "Game drawn by agreement"]

1. d4 {[%clk 0:03:00.9]} 1... d5 {[%clk 0:03:00]} 2. c4 {[%clk 0:03:00.5]} 2...
c6 {[%clk 0:03:00.4]} 3. Nf3 {[%clk 0:02:54.8]} 3... Nf6 {[%clk 0:03:00.5]} 4.
cxd5 {[%clk 0:02:55.4]} 4... cxd5 {[%clk 0:03:01.4]} 5. Nc3 {[%clk 0:02:55.5]}
5... Nc6 {[%clk 0:03:01.8]} 6. Bf4 {[%clk 0:02:56]} 6... Nh5 {[%clk 0:03:02.2]}
7. Bg5 {[%clk 0:02:55.4]} 7... h6 {[%clk 0:03:01.7]} 8. Bd2 {[%clk 0:02:55.6]}
8... Nf6 {[%clk 0:03:01.4]} 9. Bf4 {[%clk 0:02:55.2]} 9... Nh5 {[%clk
0:03:01.5]} 10. Be5 {[%clk 0:02:54.9]} 10... e6 {[%clk 0:02:42.8]} 11. e3 {[%clk
0:02:53.7]} 11... a6 {[%clk 0:02:42.5]} 12. Bd3 {[%clk 0:02:47.5]} 12... Bd6
{[%clk 0:02:40.7]} 13. O-O {[%clk 0:02:45.2]} 13... Nf6 {[%clk 0:02:39.5]} 14.
Bxd6 {[%clk 0:02:25.2]} 14... Qxd6 {[%clk 0:02:37]} 15. Rc1 {[%clk 0:02:26.1]}
15... O-O {[%clk 0:02:36.8]} 16. Qb3 {[%clk 0:02:25.7]} 16... e5 {[%clk
0:02:29.8]} 17. dxe5 {[%clk 0:02:16.5]} 17... Nxe5 {[%clk 0:02:30.7]} 18. Nxe5
{[%clk 0:02:07]} 18... Qxe5 {[%clk 0:02:31.6]} 19. Ne2 {[%clk 0:01:54.1]} 19...
Be6 {[%clk 0:02:26.1]} 20. Qc3 {[%clk 0:01:52.1]} 20... Qxc3 {[%clk 0:02:21.5]}
21. Rxc3 {[%clk 0:01:53]} 21... Rac8 {[%clk 0:02:22]} 22. Rfc1 {[%clk
0:01:52.7]} 22... Rxc3 {[%clk 0:02:22]} 23. Rxc3 {[%clk 0:01:52.3]} 23... Rc8
{[%clk 0:02:22.9]} 24. f3 {[%clk 0:01:43.4]} 24... Kf8 {[%clk 0:02:21.1]} 25.
Kf2 {[%clk 0:01:42.2]} 25... Rxc3 {[%clk 0:02:20.8]} 26. bxc3 {[%clk 0:01:33.5]}
26... Ke7 {[%clk 0:02:07.8]} 27. g4 {[%clk 0:01:32.2]} 27... Kd6 {[%clk
0:02:05.8]} 28. h4 {[%clk 0:01:30.7]} 28... g5 {[%clk 0:02:01.6]} 29. hxg5
{[%clk 0:01:28.8]} 29... hxg5 {[%clk 0:02:02.5]} 30. Nd4 {[%clk 0:01:21.9]}
30... Nd7 {[%clk 0:02:01.5]} 31. Kg3 {[%clk 0:01:20.6]} 31... Ne5 {[%clk
0:01:56.1]} 32. Be2 {[%clk 0:01:20.2]} 32... Nc6 {[%clk 0:01:56]} 33. f4 {[%clk
0:01:18.4]} 33... Nxd4 {[%clk 0:01:54.3]} 34. exd4 {[%clk 0:01:19.3]} 34... f6
{[%clk 0:01:49.8]} 35. Kf3 {[%clk 0:01:08.5]} 35... Bd7 {[%clk 0:01:41.2]} 36.
Ke3 {[%clk 0:01:06.7]} 36... a5 {[%clk 0:01:38.3]} 37. a3 {[%clk 0:01:05.4]}
37... b6 {[%clk 0:01:38.4]} 38. Bf3 {[%clk 0:01:02.9]} 38... Be6 {[%clk
0:01:38]} 39. Bd1 {[%clk 0:00:59]} 39... Bd7 {[%clk 0:01:38]} 40. Kf3 {[%clk
0:00:59.5]} 40... Bb5 {[%clk 0:01:34.8]} 41. Bc2 {[%clk 0:00:59.5]} 41... Bd7
{[%clk 0:01:33]} 42. fxg5 {[%clk 0:00:48]} 42... fxg5 {[%clk 0:01:32.5]} 43. Bf5
{[%clk 0:00:48.4]} 43... Ba4 {[%clk 0:01:18.6]} 44. Ke3 {[%clk 0:00:48.4]} 44...
Bb5 {[%clk 0:01:16.3]} 45. Kd2 {[%clk 0:00:48.4]} 45... Bc4 {[%clk 0:01:14]} 46.
Kc1 {[%clk 0:00:48.1]} 46... b5 {[%clk 0:01:10.7]} 47. Kd2 {[%clk 0:00:47.9]}
47... Ke7 {[%clk 0:01:10.7]} 48. Bc2 {[%clk 0:00:41.9]} 48... a4 {[%clk
0:01:10.1]} 49. Bd1 {[%clk 0:00:41.9]} 49... Kd6 {[%clk 0:01:08.9]} 50. Bf3
{[%clk 0:00:42.4]} 50... Ke7 {[%clk 0:01:08.9]} 51. Ke3 {[%clk 0:00:42.9]} 51...
Kd6 {[%clk 0:01:08.1]} 52. Kd2 {[%clk 0:00:43.8]} 1/2-1/2

[Event "*** Titled Tuesday Blitz"]
[Site "Chess.com"]
[Date "2020.05.26"]
[Round "3"]
[White "manmanlai1"]
[Black "Escanor89"]
[Result "0-1"]
[WhiteElo "2360"]
[BlackElo "2559"]
[TimeControl "180+1"]
[EndTime "10:26:54 PDT"]
[Termination "Escanor89 won by resignation"]

1. e4 {[%clk 0:02:52.2]} 1... c5 {[%clk 0:02:59.6]} 2. Nf3 {[%clk 0:02:43.3]}
2... d6 {[%clk 0:02:59.2]} 3. d4 {[%clk 0:02:42.7]} 3... cxd4 {[%clk 0:02:58.5]}
4. Nxd4 {[%clk 0:02:39.9]} 4... Nf6 {[%clk 0:02:58]} 5. Nc3 {[%clk 0:02:40.3]}
5... a6 {[%clk 0:02:57.5]} 6. h3 {[%clk 0:02:37.4]} 6... e6 {[%clk 0:02:53.6]}
7. g4 {[%clk 0:02:34.5]} 7... Be7 {[%clk 0:02:52.7]} 8. Be3 {[%clk 0:02:32.1]}
8... Nfd7 {[%clk 0:02:38.1]} 9. f4 {[%clk 0:02:22.6]} 9... b5 {[%clk 0:02:36.4]}
10. Bg2 {[%clk 0:02:20.1]} 10... Bh4+ {[%clk 0:02:28.3]} 11. Kd2 {[%clk
0:02:01.5]} 11... Be7 {[%clk 0:02:24]} 12. Qe2 {[%clk 0:01:57.5]} 12... b4
{[%clk 0:02:15.3]} 13. Na4 {[%clk 0:01:54.6]} 13... Bb7 {[%clk 0:02:10.7]} 14.
Rad1 {[%clk 0:01:50.5]} 14... Nc5 {[%clk 0:01:57.3]} 15. Nxc5 {[%clk 0:01:27.5]}
15... dxc5 {[%clk 0:01:56.7]} 16. Kc1 {[%clk 0:01:26.8]} 16... cxd4 {[%clk
0:01:43.8]} 17. Bxd4 {[%clk 0:01:27.7]} 17... Qa5 {[%clk 0:01:39.2]} 18. Bxg7
{[%clk 0:01:22]} 18... Rg8 {[%clk 0:01:35.6]} 19. e5 {[%clk 0:01:15.4]} 19...
Nc6 {[%clk 0:01:18.8]} 20. Bf6 {[%clk 0:00:31.6]} 20... Qxa2 {[%clk 0:01:12.5]}
21. Rd3 {[%clk 0:00:25.4]} 21... Rc8 {[%clk 0:00:46.4]} 22. Bxe7 {[%clk
0:00:08.8]} 22... Kxe7 {[%clk 0:00:44.4]} 0-1

[Event "*** Titled Tuesday Blitz"]
[Site "Chess.com"]
[Date "2020.05.26"]
[Round "3"]
[White "joejan"]
[Black "Tacticusbd"]
[Result "0-1"]
[WhiteElo "2200"]
[BlackElo "2417"]
[TimeControl "180+1"]
[EndTime "10:26:54 PDT"]
[Termination "Tacticusbd won by checkmate"]

1. e4 {[%clk 0:03:00.9]} 1... e6 {[%clk 0:02:59.7]} 2. d3 {[%clk 0:02:58.5]}
2... c5 {[%clk 0:02:58.1]} 3. Nc3 {[%clk 0:02:55.9]} 3... Nc6 {[%clk 0:02:58.4]}
4. f4 {[%clk 0:02:55.6]} 4... d6 {[%clk 0:02:46.2]} 5. Nf3 {[%clk 0:02:53.6]}
5... g6 {[%clk 0:02:43.8]} 6. g4 {[%clk 0:02:52.4]} 6... h5 {[%clk 0:02:38.2]}
7. g5 {[%clk 0:02:51]} 7... Bg7 {[%clk 0:02:33.9]} 8. Bh3 {[%clk 0:02:50.3]}
8... Nge7 {[%clk 0:02:32.5]} 9. O-O {[%clk 0:02:49.8]} 9... e5 {[%clk
0:02:15.5]} 10. f5 {[%clk 0:02:34.4]} 10... gxf5 {[%clk 0:02:14.3]} 11. exf5
{[%clk 0:02:34.2]} 11... Nxf5 {[%clk 0:01:58.5]} 12. Bxf5 {[%clk 0:02:30.2]}
12... Bxf5 {[%clk 0:01:57]} 13. Nxe5 {[%clk 0:02:30.6]} 13... Be6 {[%clk
0:01:28.6]} 14. Nxc6 {[%clk 0:02:21]} 14... bxc6 {[%clk 0:01:27.2]} 15. Be3
{[%clk 0:02:18.6]} 15... Rb8 {[%clk 0:01:24.6]} 16. Qf3 {[%clk 0:02:13.9]} 16...
d5 {[%clk 0:01:10.9]} 17. Bc1 {[%clk 0:02:02]} 17... h4 {[%clk 0:01:03.6]} 18.
Ne2 {[%clk 0:01:41.2]} 18... h3 {[%clk 0:00:56.5]} 19. Nf4 {[%clk 0:01:37.7]}
19... Qxg5+ {[%clk 0:00:52.5]} 20. Kh1 {[%clk 0:01:35.7]} 20... Bg4 {[%clk
0:00:46.7]} 21. Qg3 {[%clk 0:01:35.8]} 21... Qf5 {[%clk 0:00:38.8]} 22. Bd2
{[%clk 0:01:32.5]} 22... Kd7 {[%clk 0:00:30.7]} 23. Nxh3 {[%clk 0:01:16]} 23...
Rxh3 {[%clk 0:00:13.5]} 24. Qxb8 {[%clk 0:00:52]} 24... Bf3+ {[%clk 0:00:12.1]}
25. Kg1 {[%clk 0:00:49]} 25... Qg4+ {[%clk 0:00:10.6]} 26. Kf2 {[%clk
0:00:47.8]} 26... Qg2+ {[%clk 0:00:09.9]} 27. Ke3 {[%clk 0:00:47.9]} 27... Bd4+
{[%clk 0:00:08.3]} 28. Kf4 {[%clk 0:00:47.5]} 28... Qg4# {[%clk 0:00:09.2]} 0-1

[Event "*** Titled Tuesday Blitz"]
[Site "Chess.com"]
[Date "2020.05.26"]
[Round "3"]
[White "FeketeBarika"]
[Black "Ba_clbaf_osed_ingo_3v21"]
[Result "0-1"]
[WhiteElo "2237"]
[BlackElo "2609"]
[TimeControl "180+1"]
[EndTime "10:26:54 PDT"]
[Termination "Ba_clbaf_osed_ingo_3v21 won by resignation"]

1. Nf3 {[%clk 0:03:00.9]} 1... c5 {[%clk 0:02:59.3]} 2. g3 {[%clk 0:03:01.8]}
2... Nc6 {[%clk 0:02:58.8]} 3. Bg2 {[%clk 0:02:49]} 3... g6 {[%clk 0:02:58.9]}
4. c4 {[%clk 0:02:49.3]} 4... Bg7 {[%clk 0:02:58.5]} 5. O-O {[%clk 0:02:50.2]}
5... Nh6 {[%clk 0:02:57.9]} 6. Nc3 {[%clk 0:02:45.7]} 6... Nf5 {[%clk
0:02:57.6]} 7. Rb1 {[%clk 0:02:41.3]} 7... O-O {[%clk 0:02:57]} 8. a3 {[%clk
0:02:41.3]} 8... b6 {[%clk 0:02:48.8]} 9. b4 {[%clk 0:02:35]} 9... d6 {[%clk
0:02:48.4]} 10. b5 {[%clk 0:02:27.1]} 10... Na5 {[%clk 0:02:46.3]} 11. Qa4
{[%clk 0:02:06.7]} 11... Bb7 {[%clk 0:02:44.4]} 12. Bb2 {[%clk 0:02:03.9]} 12...
e6 {[%clk 0:02:34.5]} 13. d3 {[%clk 0:01:43.8]} 13... Qd7 {[%clk 0:02:23.2]} 14.
Ne4 {[%clk 0:01:27]} 14... Bxb2 {[%clk 0:02:20.7]} 15. Rxb2 {[%clk 0:01:27.9]}
15... Kg7 {[%clk 0:02:20.8]} 16. Rd1 {[%clk 0:01:04.5]} 16... d5 {[%clk
0:02:16.7]} 17. cxd5 {[%clk 0:00:59.4]} 17... exd5 {[%clk 0:02:17.6]} 18. Nxc5
{[%clk 0:00:58.9]} 18... Qd6 {[%clk 0:02:06.7]} 19. Nxb7 {[%clk 0:00:54.6]}
19... Nxb7 {[%clk 0:02:07.6]} 20. e4 {[%clk 0:00:53.6]} 20... Ne7 {[%clk
0:02:02.5]} 21. Qd4+ {[%clk 0:00:51.7]} 21... f6 {[%clk 0:01:59.2]} 22. e5
{[%clk 0:00:51.4]} 22... fxe5 {[%clk 0:01:33.2]} 23. Nxe5 {[%clk 0:00:52.3]}
23... Qc5 {[%clk 0:01:28]} 24. Qxc5 {[%clk 0:00:48.6]} 24... Nxc5 {[%clk
0:01:21.6]} 25. Nc6 {[%clk 0:00:47.9]} 25... Nxc6 {[%clk 0:01:16.3]} 26. bxc6
{[%clk 0:00:48.8]} 26... d4 {[%clk 0:01:16.1]} 27. Rb4 {[%clk 0:00:46.7]} 27...
Rad8 {[%clk 0:01:13]} 28. a4 {[%clk 0:00:44.7]} 28... Ne6 {[%clk 0:01:05.8]} 29.
Bh3 {[%clk 0:00:43.3]} 29... Ng5 {[%clk 0:00:50.6]} 30. Bd7 {[%clk 0:00:41.6]}
30... Nf3+ {[%clk 0:00:46.1]} 31. Kg2 {[%clk 0:00:41.8]} 31... Ne5 {[%clk
0:00:47]} 32. Rxd4 {[%clk 0:00:40.6]} 32... Nxc6 {[%clk 0:00:44.9]} 33. Rd6
{[%clk 0:00:40.4]} 33... Nb8 {[%clk 0:00:41.5]} 34. Re1 {[%clk 0:00:36.7]} 34...
Rxd7 {[%clk 0:00:39.6]} 0-1

[Event "*** Titled Tuesday Blitz"]
[Site "Chess.com"]
[Date "2020.05.26"]
[Round "3"]
[White "Zmeeed63"]
[Black "poummba"]
[Result "0-1"]
[WhiteElo "2221"]
[BlackElo "2488"]
[TimeControl "180+1"]
[EndTime "10:26:55 PDT"]
[Termination "poummba won by resignation"]

1. d4 {[%clk 0:03:00.9]} 1... g6 {[%clk 0:02:58.3]} 2. e4 {[%clk 0:02:51.4]}
2... Bg7 {[%clk 0:02:58.5]} 3. Nc3 {[%clk 0:02:51.7]} 3... e6 {[%clk 0:02:56.4]}
4. Be3 {[%clk 0:02:51.1]} 4... Ne7 {[%clk 0:02:56.1]} 5. Qd2 {[%clk 0:02:51.6]}
5... d5 {[%clk 0:02:56.1]} 6. e5 {[%clk 0:02:51]} 6... c5 {[%clk 0:02:55.3]} 7.
f4 {[%clk 0:02:47.6]} 7... cxd4 {[%clk 0:02:53.9]} 8. Bxd4 {[%clk 0:02:48.5]}
8... Nbc6 {[%clk 0:02:54.1]} 9. Bc5 {[%clk 0:02:46.1]} 9... O-O {[%clk
0:02:52.5]} 10. Nf3 {[%clk 0:02:44.2]} 10... b6 {[%clk 0:02:39.8]} 11. Ba3
{[%clk 0:02:39.7]} 11... Re8 {[%clk 0:02:36.7]} 12. g4 {[%clk 0:02:38.5]} 12...
Bb7 {[%clk 0:02:21.6]} 13. h4 {[%clk 0:02:36.3]} 13... d4 {[%clk 0:02:19.8]} 14.
Nb5 {[%clk 0:01:49.9]} 14... Nxe5 {[%clk 0:02:15.7]} 15. Nxe5 {[%clk 0:01:49.7]}
15... Bxh1 {[%clk 0:02:15.1]} 16. Nd6 {[%clk 0:01:48.9]} 16... Rf8 {[%clk
0:01:59.4]} 17. O-O-O {[%clk 0:00:57.6]} 17... Nc6 {[%clk 0:01:59.1]} 18. Bc4
{[%clk 0:00:47.6]} 18... Nxe5 {[%clk 0:01:41.7]} 19. fxe5 {[%clk 0:00:48.5]}
19... Bxe5 {[%clk 0:01:30.7]} 20. Nxf7 {[%clk 0:00:46.3]} 20... Rxf7 {[%clk
0:01:30.6]} 21. Kb1 {[%clk 0:00:40.2]} 21... Bd5 {[%clk 0:01:28.4]} 22. Bd3
{[%clk 0:00:34.5]} 22... Qxh4 {[%clk 0:01:25.8]} 23. Re1 {[%clk 0:00:22.3]}
23... Bg7 {[%clk 0:01:13.6]} 24. Bb5 {[%clk 0:00:13.9]} 24... Qxg4 {[%clk
0:01:06.2]} 25. Be2 {[%clk 0:00:12.6]} 25... Qh4 {[%clk 0:01:01.6]} 26. Bd6
{[%clk 0:00:12.4]} 26... a5 {[%clk 0:00:54]} 27. b3 {[%clk 0:00:11.7]} 27... Bh6
{[%clk 0:00:53.1]} 28. Qd3 {[%clk 0:00:11.4]} 28... Qxe1+ {[%clk 0:00:52.3]} 0-1

[Event "*** Titled Tuesday Blitz"]
[Site "Chess.com"]
[Date "2020.05.26"]
[Round "3"]
[White "ElGasanov"]
[Black "amiralfio"]
[Result "1-0"]
[WhiteElo "2743"]
[BlackElo "2430"]
[TimeControl "180+1"]
[EndTime "10:26:58 PDT"]
[Termination "ElGasanov won by resignation"]

1. d4 {[%clk 0:03:00.9]} 1... f5 {[%clk 0:02:56]} 2. Nf3 {[%clk 0:03:01]} 2...
Nf6 {[%clk 0:02:53.4]} 3. Bg5 {[%clk 0:03:01.4]} 3... e6 {[%clk 0:02:45.9]} 4.
Nbd2 {[%clk 0:03:01.2]} 4... Be7 {[%clk 0:02:29.5]} 5. Bxf6 {[%clk 0:03:00.3]}
5... Bxf6 {[%clk 0:02:30.4]} 6. e4 {[%clk 0:03:00.6]} 6... d5 {[%clk 0:02:29.8]}
7. e5 {[%clk 0:02:59.6]} 7... Be7 {[%clk 0:02:18.2]} 8. c4 {[%clk 0:03:00.1]}
8... O-O {[%clk 0:02:11.6]} 9. cxd5 {[%clk 0:02:59.7]} 9... Qxd5 {[%clk
0:02:12.2]} 10. Bc4 {[%clk 0:02:59.9]} 10... Qd8 {[%clk 0:02:05.9]} 11. Qb3
{[%clk 0:02:58.6]} 11... Qd7 {[%clk 0:01:57.2]} 12. d5 {[%clk 0:02:54.1]} 12...
exd5 {[%clk 0:01:57.2]} 13. Bxd5+ {[%clk 0:02:54.6]} 13... Kh8 {[%clk
0:01:57.9]} 14. O-O {[%clk 0:02:52.7]} 14... Nc6 {[%clk 0:01:56]} 15. Rad1
{[%clk 0:02:27.3]} 15... Na5 {[%clk 0:01:23.5]} 16. Qd3 {[%clk 0:02:23.7]} 16...
c6 {[%clk 0:01:22.9]} 17. Nc4 {[%clk 0:02:12.2]} 17... Qxd5 {[%clk 0:01:02.8]}
18. Qxd5 {[%clk 0:02:11.8]} 18... cxd5 {[%clk 0:01:03.7]} 19. Nxa5 {[%clk
0:02:12]} 19... Be6 {[%clk 0:01:00.2]} 20. Nd4 {[%clk 0:02:09.2]} 20... Bg8
{[%clk 0:01:00.6]} 21. Rc1 {[%clk 0:02:03.2]} 21... Rfc8 {[%clk 0:00:47.5]} 22.
Nxb7 {[%clk 0:02:00.2]} 22... g6 {[%clk 0:00:47.1]} 23. Nd6 {[%clk 0:01:55.2]}
23... Rd8 {[%clk 0:00:25.3]} 24. Rc6 {[%clk 0:01:48.1]} 24... Rab8 {[%clk
0:00:20.7]} 25. b3 {[%clk 0:01:43.6]} 25... Rb6 {[%clk 0:00:19.8]} 26. Rxb6
{[%clk 0:01:39.7]} 26... axb6 {[%clk 0:00:20.7]} 27. Nc6 {[%clk 0:01:40.4]}
27... Rd7 {[%clk 0:00:20.9]} 28. Nxe7 {[%clk 0:01:37]} 28... Rxe7 {[%clk
0:00:21.8]} 29. f4 {[%clk 0:01:35.4]} 29... Rc7 {[%clk 0:00:22.1]} 30. Re1
{[%clk 0:01:27.4]} 30... Be6 {[%clk 0:00:21.2]} 31. Nb5 {[%clk 0:01:26.4]} 31...
Rc8 {[%clk 0:00:16.3]} 32. Nd4 {[%clk 0:01:26.1]} 32... Bg8 {[%clk 0:00:08.4]}
33. e6 {[%clk 0:01:25.5]} 33... Kg7 {[%clk 0:00:08.8]} 34. Re5 {[%clk
0:01:21.5]} 34... Kf6 {[%clk 0:00:07.3]} 35. Rxd5 {[%clk 0:01:20.2]} 35... Rc1+
{[%clk 0:00:04.6]} 36. Kf2 {[%clk 0:01:20]} 36... Rd1 {[%clk 0:00:05.5]} 37. e7
{[%clk 0:01:13.6]} 37... Kxe7 {[%clk 0:00:02.8]} 38. Nc6+ {[%clk 0:01:12.5]} 1-0

[Event "*** Titled Tuesday Blitz"]
[Site "Chess.com"]
[Date "2020.05.26"]
[Round "3"]
[White "Hydrargyrum_Girl"]
[Black "verdest"]
[Result "1/2-1/2"]
[WhiteElo "2335"]
[BlackElo "2521"]
[TimeControl "180+1"]
[EndTime "10:26:58 PDT"]
[Termination "Game drawn by repetition"]

1. d4 {[%clk 0:03:00.9]} 1... Nf6 {[%clk 0:02:57]} 2. Nc3 {[%clk 0:03:01]} 2...
d5 {[%clk 0:02:55.7]} 3. Bg5 {[%clk 0:03:00.6]} 3... c6 {[%clk 0:02:53.2]} 4. e3
{[%clk 0:02:58.7]} 4... Bf5 {[%clk 0:02:51.5]} 5. Bxf6 {[%clk 0:02:56.3]} 5...
exf6 {[%clk 0:02:49.9]} 6. g3 {[%clk 0:02:57.2]} 6... Nd7 {[%clk 0:02:49.3]} 7.
Bg2 {[%clk 0:02:57.3]} 7... Bd6 {[%clk 0:02:49.1]} 8. Nge2 {[%clk 0:02:57.3]}
8... O-O {[%clk 0:02:48.7]} 9. O-O {[%clk 0:02:57.2]} 9... Re8 {[%clk 0:02:42]}
10. b3 {[%clk 0:02:57.4]} 10... Bg4 {[%clk 0:02:39.7]} 11. Qd3 {[%clk
0:02:56.2]} 11... f5 {[%clk 0:02:24.3]} 12. Na4 {[%clk 0:02:54.8]} 12... Nf6
{[%clk 0:02:21.5]} 13. c4 {[%clk 0:02:54.4]} 13... Qe7 {[%clk 0:01:59.7]} 14.
Nac3 {[%clk 0:02:52]} 14... dxc4 {[%clk 0:01:55.2]} 15. bxc4 {[%clk 0:02:52.9]}
15... Rad8 {[%clk 0:01:50.8]} 16. h3 {[%clk 0:02:47.8]} 16... Bxe2 {[%clk
0:01:40.9]} 17. Qxe2 {[%clk 0:02:48.7]} 17... c5 {[%clk 0:01:38]} 18. Qf3 {[%clk
0:02:39.6]} 18... Ne4 {[%clk 0:01:33.3]} 19. Nd5 {[%clk 0:02:34.4]} 19... Qg5
{[%clk 0:01:26.6]} 20. Rfd1 {[%clk 0:02:18.5]} 20... h5 {[%clk 0:01:23.4]} 21.
h4 {[%clk 0:02:17]} 21... Qg4 {[%clk 0:01:20.3]} 22. Qxg4 {[%clk 0:02:13]} 22...
hxg4 {[%clk 0:01:20.1]} 23. Bxe4 {[%clk 0:02:09.5]} 23... fxe4 {[%clk
0:01:13.4]} 24. dxc5 {[%clk 0:02:07.9]} 24... Bxc5 {[%clk 0:01:10]} 25. Nc3
{[%clk 0:02:05.1]} 25... f5 {[%clk 0:00:55]} 26. Kf1 {[%clk 0:02:01.6]} 26...
Kf7 {[%clk 0:00:53.2]} 27. Ke2 {[%clk 0:02:00.6]} 27... b6 {[%clk 0:00:47.1]}
28. Nd5 {[%clk 0:01:59.6]} 28... Rd7 {[%clk 0:00:44.4]} 29. a4 {[%clk
0:01:56.6]} 29... Red8 {[%clk 0:00:43.3]} 30. Rab1 {[%clk 0:01:56.4]} 30... Rd6
{[%clk 0:00:37.4]} 31. Rb5 {[%clk 0:01:50.5]} 31... a6 {[%clk 0:00:36.7]} 32.
Rbb1 {[%clk 0:01:50.2]} 32... g6 {[%clk 0:00:33.9]} 33. Nf4 {[%clk 0:01:38.5]}
33... Rxd1 {[%clk 0:00:31.9]} 34. Rxd1 {[%clk 0:01:39.4]} 34... Rxd1 {[%clk
0:00:32.4]} 35. Kxd1 {[%clk 0:01:40.3]} 35... Bb4 {[%clk 0:00:29.1]} 36. Nd5
{[%clk 0:01:39.2]} 36... Bc5 {[%clk 0:00:27.8]} 37. Kc2 {[%clk 0:01:38.3]} 37...
a5 {[%clk 0:00:23.2]} 38. Kd1 {[%clk 0:01:35.4]} 38... Ke6 {[%clk 0:00:22.7]}
39. Ke2 {[%clk 0:01:35.5]} 39... Ke5 {[%clk 0:00:20.4]} 40. Nf4 {[%clk
0:01:30.4]} 40... Kf6 {[%clk 0:00:20.5]} 41. Nd5+ {[%clk 0:01:30.6]} 41... Ke5
{[%clk 0:00:20.6]} 42. Nc3 {[%clk 0:01:29.6]} 42... Kf6 {[%clk 0:00:20]} 43. Nb5
{[%clk 0:01:17.9]} 43... Ke5 {[%clk 0:00:19.8]} 44. Nc7 {[%clk 0:01:17.3]} 44...
Kd6 {[%clk 0:00:18.5]} 45. Nd5 {[%clk 0:01:16.9]} 45... Ke5 {[%clk 0:00:18.2]}
1/2-1/2

[Event "*** Titled Tuesday Blitz"]
[Site "Chess.com"]
[Date "2020.05.26"]
[Round "3"]
[White "allvim"]
[Black "RU_B9"]
[Result "1-0"]
[WhiteElo "2250"]
[BlackElo "1842"]
[TimeControl "180+1"]
[EndTime "10:27:00 PDT"]
[Termination "allvim won on time"]

1. e4 {[%clk 0:03:00.9]} 1... c5 {[%clk 0:02:59.5]} 2. Nf3 {[%clk 0:02:59.2]}
2... Nc6 {[%clk 0:02:58.6]} 3. d4 {[%clk 0:02:58.7]} 3... cxd4 {[%clk
0:02:59.5]} 4. Nxd4 {[%clk 0:02:59.3]} 4... Nf6 {[%clk 0:02:59.5]} 5. Nc3 {[%clk
0:02:59.7]} 5... e5 {[%clk 0:02:59.1]} 6. Ndb5 {[%clk 0:02:59.3]} 6... d6 {[%clk
0:02:55.6]} 7. Be3 {[%clk 0:02:59.3]} 7... a6 {[%clk 0:02:52.2]} 8. Na3 {[%clk
0:02:59.5]} 8... b5 {[%clk 0:02:51.6]} 9. Nd5 {[%clk 0:02:59.4]} 9... Nxd5
{[%clk 0:02:39.4]} 10. exd5 {[%clk 0:02:59]} 10... Nb8 {[%clk 0:02:15.1]} 11. c4
{[%clk 0:02:51.2]} 11... b4 {[%clk 0:02:14.7]} 12. Nc2 {[%clk 0:02:51.5]} 12...
a5 {[%clk 0:01:57.4]} 13. Be2 {[%clk 0:02:48.8]} 13... Be7 {[%clk 0:01:56.3]}
14. O-O {[%clk 0:02:48.9]} 14... O-O {[%clk 0:01:55.5]} 15. f4 {[%clk
0:02:43.1]} 15... exf4 {[%clk 0:01:33.8]} 16. Bxf4 {[%clk 0:02:41.2]} 16... Bg5
{[%clk 0:01:25.2]} 17. Bg3 {[%clk 0:02:26.1]} 17... Na6 {[%clk 0:01:14.5]} 18.
Nd4 {[%clk 0:02:24.4]} 18... Be3+ {[%clk 0:00:40.8]} 19. Kh1 {[%clk 0:02:22]}
19... Bxd4 {[%clk 0:00:37.9]} 20. Qxd4 {[%clk 0:02:22.9]} 20... Nc5 {[%clk
0:00:38]} 21. Rae1 {[%clk 0:02:16.9]} 21... Ba6 {[%clk 0:00:30.1]} 22. b3 {[%clk
0:01:33.1]} 22... Qc7 {[%clk 0:00:29.4]} 23. Bd1 {[%clk 0:01:29.2]} 23... Rae8
{[%clk 0:00:20.8]} 24. Bc2 {[%clk 0:01:29.3]} 24... Rxe1 {[%clk 0:00:20]} 25.
Rxe1 {[%clk 0:01:30.2]} 25... Qd7 {[%clk 0:00:17.6]} 26. Qh4 {[%clk 0:01:16.9]}
26... g6 {[%clk 0:00:14.2]} 27. Re7 {[%clk 0:01:13.7]} 27... Qd8 {[%clk
0:00:10.3]} 28. h3 {[%clk 0:01:03.8]} 28... Re8 {[%clk 0:00:08.8]} 29. Rxe8+
{[%clk 0:01:00.1]} 29... Qxe8 {[%clk 0:00:09.5]} 30. Bxd6 {[%clk 0:01:00.8]}
30... Ne4 {[%clk 0:00:02.4]} 31. Bxe4 {[%clk 0:00:57]} 31... Qxe4 {[%clk
0:00:03.3]} 32. Qd8+ {[%clk 0:00:57.5]} 32... Kg7 {[%clk 0:00:03.2]} 33. Bf8+
{[%clk 0:00:58.1]} 1-0

[Event "*** Titled Tuesday Blitz"]
[Site "Chess.com"]
[Date "2020.05.26"]
[Round "3"]
[White "Goryachkina"]
[Black "El_ultimo_Pablo"]
[Result "1-0"]
[WhiteElo "2622"]
[BlackElo "2403"]
[TimeControl "180+1"]
[EndTime "10:27:02 PDT"]
[Termination "Goryachkina won by resignation"]

1. d4 {[%clk 0:03:00.9]} 1... Nf6 {[%clk 0:03:00.2]} 2. c4 {[%clk 0:03:00.3]}
2... g6 {[%clk 0:03:00.7]} 3. Nc3 {[%clk 0:02:59.4]} 3... Bg7 {[%clk 0:03:01]}
4. e4 {[%clk 0:02:59.6]} 4... d6 {[%clk 0:03:01.5]} 5. Be2 {[%clk 0:02:58.6]}
5... O-O {[%clk 0:03:01.6]} 6. Be3 {[%clk 0:02:58.8]} 6... e5 {[%clk 0:03:00.9]}
7. d5 {[%clk 0:02:56.6]} 7... a5 {[%clk 0:03:00]} 8. g4 {[%clk 0:02:54.8]} 8...
Nfd7 {[%clk 0:02:57.9]} 9. h4 {[%clk 0:02:52.9]} 9... f5 {[%clk 0:02:52.8]} 10.
gxf5 {[%clk 0:02:45.3]} 10... gxf5 {[%clk 0:02:53.7]} 11. Bg5 {[%clk 0:02:45]}
11... Bf6 {[%clk 0:02:49.9]} 12. Qd2 {[%clk 0:02:41]} 12... f4 {[%clk 0:02:45]}
13. Nf3 {[%clk 0:02:22.8]} 13... Kh8 {[%clk 0:02:41.9]} 14. O-O-O {[%clk
0:02:21.3]} 14... Na6 {[%clk 0:02:41]} 15. Bxf6+ {[%clk 0:02:18]} 15... Qxf6
{[%clk 0:02:39.9]} 16. Rdg1 {[%clk 0:02:10.3]} 16... Nac5 {[%clk 0:02:18.3]} 17.
h5 {[%clk 0:02:08.9]} 17... a4 {[%clk 0:02:14.8]} 18. Nh4 {[%clk 0:01:59.4]}
18... Nb6 {[%clk 0:01:04.3]} 19. Ng6+ {[%clk 0:01:08.6]} 19... hxg6 {[%clk
0:01:04.1]} 20. hxg6+ {[%clk 0:01:07.7]} 20... Kg8 {[%clk 0:00:47.9]} 21. g7
{[%clk 0:01:03.5]} 21... Qxg7 {[%clk 0:00:47.6]} 22. Rxg7+ {[%clk 0:01:02.8]}
22... Kxg7 {[%clk 0:00:48.5]} 23. Qe1 {[%clk 0:00:59.7]} 23... Rg8 {[%clk
0:00:34.6]} 24. Qg1+ {[%clk 0:00:54.4]} 24... Kf8 {[%clk 0:00:35]} 25. Qh2
{[%clk 0:00:53.9]} 25... Bd7 {[%clk 0:00:22.8]} 26. Qh6+ {[%clk 0:00:53.3]}
26... Ke8 {[%clk 0:00:21.6]} 27. Qf6 {[%clk 0:00:48.4]} 27... Nd3+ {[%clk
0:00:10.2]} 28. Bxd3 {[%clk 0:00:46.7]} 28... Bg4 {[%clk 0:00:06.6]} 29. Rh7
{[%clk 0:00:43.7]} 1-0